[Event "Titled Tuesday Blitz November 15 Early 2022"]
[White "Hoffmann, Asa"]
[Black "Bilan, Danila"]
[WhiteFideId "2001470"]
[BlackFideId "24161918"]
[WhiteElo "2117"]
[BlackElo "2173"]
[Result "1-0"]
[Round "07"]
[TimeControl "180+1"]
[Date "2022.11.16"]
[WhiteClock "0:01:02"]
[BlackClock "0:00:02"]

1. d4 {[%clk 0:02:59]}  d5 {[%clk 0:02:59]} 2. Bg5 {[%clk 0:02:58]}  Nf6 {[%clk 0:02:59]} 3. Nd2 {[%clk 0:02:57]}  c5 {[%clk 0:02:57]} 4. e3 {[%clk 0:02:56]}  Nc6 {[%clk 0:02:51]} 5. c3 {[%clk 0:02:55]}  Qb6 {[%clk 0:02:48]} 6. Rb1 {[%clk 0:02:54]}  Bf5 {[%clk 0:02:47]} 7. dxc5 {[%clk 0:02:49]}  Qxc5 {[%clk 0:02:42]} 8. Nb3 {[%clk 0:02:49]}  Qb6 {[%clk 0:02:35]} 9. Bd3 {[%clk 0:02:44]}  Ne4 {[%clk 0:02:21]} 10. Bf4 {[%clk 0:02:43]}  e5 {[%clk 0:02:10]} 11. Bg3 {[%clk 0:02:43]}  Bd6 {[%clk 0:01:55]} 12. Ne2 {[%clk 0:02:42]}  O-O {[%clk 0:01:51]} 13. O-O {[%clk 0:02:42]}  Rad8 {[%clk 0:01:51]} 14. Nbc1 {[%clk 0:02:24]}  Rfe8 {[%clk 0:01:39]} 15. Qb3 {[%clk 0:02:22]}  Qxb3 {[%clk 0:01:11]} 16. axb3 {[%clk 0:02:15]}  Bg6 {[%clk 0:01:02]} 17. Rd1 {[%clk 0:02:12]}  f6 {[%clk 0:00:54]} 18. b4 {[%clk 0:02:10]}  a6 {[%clk 0:00:47]} 19. Nb3 {[%clk 0:02:09]}  Bf7 {[%clk 0:00:38]} 20. Nd2 {[%clk 0:01:58]}  Nxd2 {[%clk 0:00:34]} 21. Rxd2 {[%clk 0:01:57]}  Ra8 {[%clk 0:00:24]} 22. Bc2 {[%clk 0:01:44]}  Na7 {[%clk 0:00:16]} 23. Bb3 {[%clk 0:01:43]}  Bf8 {[%clk 0:00:06]} 24. Bxd5 {[%clk 0:01:41]}  Nc6 {[%clk 0:00:04]} 25. Rbd1 {[%clk 0:01:38]}  Bxd5 {[%clk 0:00:02]} 26. Rxd5 {[%clk 0:01:38]}  Re7 {[%clk 0:00:03]} 27. Rd7 {[%clk 0:01:37]}  Rae8 {[%clk 0:00:03]} 28. e4 {[%clk 0:01:36]}  Rxd7 {[%clk 0:00:02]} 29. Rxd7 {[%clk 0:01:35]}  Rd8 {[%clk 0:00:03]} 30. Rxd8 {[%clk 0:01:34]}  Nxd8 {[%clk 0:00:03]} 31. f3 {[%clk 0:01:34]}  Kf7 {[%clk 0:00:03]} 32. Bf2 {[%clk 0:01:34]}  Ke6 {[%clk 0:00:04]} 33. Nc1 {[%clk 0:01:34]}  Nf7 {[%clk 0:00:03]} 34. Kf1 {[%clk 0:01:34]}  Bd6 {[%clk 0:00:04]} 35. Ke2 {[%clk 0:01:33]}  Bc7 {[%clk 0:00:04]} 36. Kd3 {[%clk 0:01:33]}  b5 {[%clk 0:00:04]} 37. b3 {[%clk 0:01:33]}  Nd6 {[%clk 0:00:04]} 38. c4 {[%clk 0:01:33]}  Nf7 {[%clk 0:00:03]} 39. Ne2 {[%clk 0:01:31]}  Bd6 {[%clk 0:00:04]} 40. Be1 {[%clk 0:01:29]}  Nd8 {[%clk 0:00:03]} 41. Bc3 {[%clk 0:01:27]}  Kd7 {[%clk 0:00:02]} 42. g3 {[%clk 0:01:26]}  Kc6 {[%clk 0:00:02]} 43. f4 {[%clk 0:01:25]}  Ne6 {[%clk 0:00:03]} 44. fxe5 {[%clk 0:01:23]}  fxe5 {[%clk 0:00:03]} 45. Ng1 {[%clk 0:01:22]}  Ng5 {[%clk 0:00:03]} 46. h4 {[%clk 0:01:21]}  Ne6 {[%clk 0:00:03]} 47. Nf3 {[%clk 0:01:21]}  Nd4 {[%clk 0:00:03]} 48. Nxd4+ {[%clk 0:01:18]}  exd4 {[%clk 0:00:03]} 49. Bxd4 {[%clk 0:01:16]}  Bxg3 {[%clk 0:00:03]} 50. h5 {[%clk 0:01:14]}  g6 {[%clk 0:00:03]} 51. hxg6 {[%clk 0:01:14]}  hxg6 {[%clk 0:00:04]} 52. e5 {[%clk 0:01:13]}  Kd7 {[%clk 0:00:04]} 53. Ke4 {[%clk 0:01:11]}  Ke6 {[%clk 0:00:04]} 54. c5 {[%clk 0:01:11]}  Bh4 {[%clk 0:00:04]} 55. c6 {[%clk 0:01:11]}  Bd8 {[%clk 0:00:05]} 56. Bc5 {[%clk 0:01:10]}  Bc7 {[%clk 0:00:05]} 57. Bd4 {[%clk 0:01:06]}  Bb8 {[%clk 0:00:05]} 58. Bb6 {[%clk 0:01:04]}  Bxe5 {[%clk 0:00:03]} 59. c7 {[%clk 0:01:04]}  Bxc7 {[%clk 0:00:02]} 60. Bxc7 {[%clk 0:01:03]}  Kd7 {[%clk 0:00:02]} 61. Bf4 {[%clk 0:01:02]} 1-0


[Site "https://www.chess.com"]

[Event "Titled Tuesday Blitz November 15 Early 2022"]
[White "Ilkhomi, Jaloliddin"]
[Black "Szpar, Milosz"]
[WhiteFideId "14700948"]
[BlackFideId "1184989"]
[WhiteElo "2045"]
[BlackElo "2422"]
[Result "1-0"]
[Round "07"]
[TimeControl "180+1"]
[Date "2022.11.16"]
[WhiteClock "0:00:15"]
[BlackClock "0:00:12"]

1. d4 {[%clk 0:02:55]}  Nf6 {[%clk 0:02:59]} 2. Nf3 {[%clk 0:02:54]}  c5 {[%clk 0:02:58]} 3. e3 {[%clk 0:02:54]}  g6 {[%clk 0:02:57]} 4. c3 {[%clk 0:02:54]}  Bg7 {[%clk 0:02:57]} 5. Bd3 {[%clk 0:02:54]}  O-O {[%clk 0:02:53]} 6. O-O {[%clk 0:02:54]}  d6 {[%clk 0:02:53]} 7. Nbd2 {[%clk 0:02:51]}  Nc6 {[%clk 0:02:53]} 8. Re1 {[%clk 0:02:50]}  b6 {[%clk 0:02:46]} 9. Qe2 {[%clk 0:02:43]}  Bb7 {[%clk 0:02:46]} 10. a4 {[%clk 0:02:41]}  e5 {[%clk 0:02:43]} 11. dxe5 {[%clk 0:02:39]}  Nxe5 {[%clk 0:02:43]} 12. Nxe5 {[%clk 0:02:39]}  dxe5 {[%clk 0:02:43]} 13. e4 {[%clk 0:02:38]}  Nh5 {[%clk 0:02:43]} 14. Nf3 {[%clk 0:02:37]}  Nf4 {[%clk 0:02:43]} 15. Bxf4 {[%clk 0:02:37]}  exf4 {[%clk 0:02:44]} 16. Rad1 {[%clk 0:02:34]}  Qe7 {[%clk 0:02:42]} 17. Ba6 {[%clk 0:02:33]}  Rad8 {[%clk 0:02:37]} 18. Bxb7 {[%clk 0:02:32]}  Qxb7 {[%clk 0:02:38]} 19. h3 {[%clk 0:02:29]}  h6 {[%clk 0:02:36]} 20. e5 {[%clk 0:02:26]}  Rxd1 {[%clk 0:02:22]} 21. Rxd1 {[%clk 0:02:26]}  Re8 {[%clk 0:02:22]} 22. Re1 {[%clk 0:02:18]}  Qd5 {[%clk 0:02:15]} 23. c4 {[%clk 0:02:00]}  Qc6 {[%clk 0:02:13]} 24. Qc2 {[%clk 0:01:52]}  g5 {[%clk 0:02:09]} 25. b3 {[%clk 0:01:50]}  Rd8 {[%clk 0:01:55]} 26. Rd1 {[%clk 0:01:34]}  Rxd1+ {[%clk 0:01:46]} 27. Qxd1 {[%clk 0:01:35]}  Qg6 {[%clk 0:01:40]} 28. Qd8+ {[%clk 0:01:31]}  Kh7 {[%clk 0:01:40]} 29. Qd7 {[%clk 0:01:32]}  h5 {[%clk 0:01:36]} 30. e6 {[%clk 0:01:16]}  g4 {[%clk 0:01:31]} 31. hxg4 {[%clk 0:00:18]}  hxg4 {[%clk 0:01:31]} 32. e7 {[%clk 0:00:18]}  g3 {[%clk 0:00:21]} 33. e8=Q {[%clk 0:00:16]}  Qb1+ {[%clk 0:00:12]} 34. Qe1 {[%clk 0:00:15]} 1-0


[Site "https://www.chess.com"]

[Event "Titled Tuesday Blitz November 15 Early 2022"]
[White "Jaskolka, Tomasz"]
[Black "Aradhya, Garg"]
[WhiteFideId "1170791"]
[BlackFideId "25006746"]
[WhiteElo "2126"]
[BlackElo "2223"]
[Result "0-1"]
[Round "07"]
[TimeControl "180+1"]
[Date "2022.11.16"]
[WhiteClock "0:01:22"]
[BlackClock "0:02:11"]

1. d4 {[%clk 0:03:00]}  d5 {[%clk 0:02:59]} 2. Bf4 {[%clk 0:03:00]}  c5 {[%clk 0:02:57]} 3. e3 {[%clk 0:03:01]}  Nc6 {[%clk 0:02:57]} 4. c3 {[%clk 0:03:01]}  Nf6 {[%clk 0:02:56]} 5. Nd2 {[%clk 0:03:02]}  Bf5 {[%clk 0:02:54]} 6. Ngf3 {[%clk 0:03:02]}  e6 {[%clk 0:02:53]} 7. Qa4 {[%clk 0:03:03]}  Nd7 {[%clk 0:02:52]} 8. Bb5 {[%clk 0:03:01]}  Rc8 {[%clk 0:02:52]} 9. Bxc6 {[%clk 0:02:56]}  Rxc6 {[%clk 0:02:51]} 10. Qxa7 {[%clk 0:02:53]}  Qc8 {[%clk 0:02:51]} 11. Qa4 {[%clk 0:02:51]}  Bd3 {[%clk 0:02:50]} 12. Ne5 {[%clk 0:02:20]}  Ra6 {[%clk 0:02:34]} 13. Qxd7+ {[%clk 0:02:16]}  Qxd7 {[%clk 0:02:35]} 14. Nxd7 {[%clk 0:02:17]}  Kxd7 {[%clk 0:02:35]} 15. Nb3 {[%clk 0:02:13]}  b6 {[%clk 0:02:20]} 16. Kd2 {[%clk 0:02:06]}  Bc4 {[%clk 0:02:17]} 17. Kc2 {[%clk 0:01:44]}  Be7 {[%clk 0:02:16]} 18. a3 {[%clk 0:01:42]}  Be2 {[%clk 0:02:14]} 19. f3 {[%clk 0:01:35]}  Bb5 {[%clk 0:02:13]} 20. Rhd1 {[%clk 0:01:27]}  Ba4 {[%clk 0:02:12]} 21. dxc5 {[%clk 0:01:28]}  bxc5 {[%clk 0:02:12]} 22. c4 {[%clk 0:01:25]}  Rb6 {[%clk 0:02:13]} 23. Rd3 {[%clk 0:01:25]}  Rxb3 {[%clk 0:02:12]} 24. Rxb3 {[%clk 0:01:25]}  dxc4 {[%clk 0:02:13]} 25. Rd1+ {[%clk 0:01:25]}  Kc6 {[%clk 0:02:13]} 26. Kc3 {[%clk 0:01:25]}  Bxb3 {[%clk 0:02:11]} 27. Rd2 {[%clk 0:01:24]}  Bf6+ {[%clk 0:02:12]} 28. Be5 {[%clk 0:01:22]}  Bxe5+ {[%clk 0:02:11]} 0-1


[Site "https://www.chess.com"]

[Event "Titled Tuesday Blitz November 15 Early 2022"]
[White "Jiganchine, Roman"]
[Black "Adithya A Chullikkad"]
[WhiteFideId "2603667"]
[BlackFideId "45078734"]
[WhiteElo "2311"]
[BlackElo "2106"]
[Result "1-0"]
[Round "07"]
[TimeControl "180+1"]
[Date "2022.11.16"]
[WhiteClock "0:01:23"]
[BlackClock "0:02:01"]

1. e4 {[%clk 0:03:00]}  d5 {[%clk 0:02:53]} 2. exd5 {[%clk 0:02:57]}  Qxd5 {[%clk 0:02:54]} 3. Nc3 {[%clk 0:02:53]}  Qa5 {[%clk 0:02:52]} 4. Bc4 {[%clk 0:02:52]}  Nf6 {[%clk 0:02:51]} 5. d3 {[%clk 0:02:52]}  Bf5 {[%clk 0:02:52]} 6. Bd2 {[%clk 0:02:49]}  e6 {[%clk 0:02:52]} 7. Nd5 {[%clk 0:02:44]}  Qc5 {[%clk 0:02:49]} 8. b4 {[%clk 0:02:43]}  Qd6 {[%clk 0:02:45]} 9. Bf4 {[%clk 0:02:43]}  e5 {[%clk 0:02:46]} 10. Nxf6+ {[%clk 0:02:32]}  gxf6 {[%clk 0:02:45]} 11. Bd2 {[%clk 0:02:30]}  Nd7 {[%clk 0:02:44]} 12. Ne2 {[%clk 0:02:23]}  Nb6 {[%clk 0:02:40]} 13. Bb3 {[%clk 0:02:16]}  Rg8 {[%clk 0:02:33]} 14. Ng3 {[%clk 0:02:15]}  Bg4 {[%clk 0:02:29]} 15. f3 {[%clk 0:02:11]}  Be6 {[%clk 0:02:28]} 16. Ne4 {[%clk 0:02:05]}  Qe7 {[%clk 0:02:28]} 17. O-O {[%clk 0:01:54]}  Nd5 {[%clk 0:02:15]} 18. Qe1 {[%clk 0:01:31]}  Nxb4 {[%clk 0:02:08]} 19. Bxb4 {[%clk 0:01:29]}  Qxb4 {[%clk 0:02:07]} 20. Nxf6+ {[%clk 0:01:25]}  Kd8 {[%clk 0:02:01]} 21. Qxb4 {[%clk 0:01:23]}  Bxb4 {[%clk 0:02:01]} 22. Nxg8 {[%clk 0:01:23]} 1-0


[Site "https://www.chess.com"]

[Event "Titled Tuesday Blitz November 15 Early 2022"]
[White "Johnson, Ben"]
[Black "Kostiukov, Alexandr"]
[WhiteFideId "2010917"]
[BlackFideId "14108100"]
[WhiteElo "2122"]
[BlackElo "2202"]
[Result "1-0"]
[Round "07"]
[TimeControl "180+1"]
[Date "2022.11.16"]
[WhiteClock "0:00:23"]
[BlackClock "0:00:01"]

1. Nf3 {[%clk 0:03:00]}  c5 {[%clk 0:02:58]} 2. c4 {[%clk 0:03:00]}  g6 {[%clk 0:02:59]} 3. d4 {[%clk 0:02:57]}  Bg7 {[%clk 0:02:59]} 4. e4 {[%clk 0:02:51]}  cxd4 {[%clk 0:02:57]} 5. Nxd4 {[%clk 0:02:50]}  Nf6 {[%clk 0:02:57]} 6. Nc3 {[%clk 0:02:50]}  Nc6 {[%clk 0:02:53]} 7. Be3 {[%clk 0:02:50]}  Nxd4 {[%clk 0:02:45]} 8. Bxd4 {[%clk 0:02:49]}  Qa5 {[%clk 0:02:46]} 9. Be2 {[%clk 0:02:42]}  O-O {[%clk 0:02:44]} 10. O-O {[%clk 0:02:41]}  d6 {[%clk 0:02:41]} 11. Rc1 {[%clk 0:02:27]}  Bd7 {[%clk 0:02:29]} 12. Kh1 {[%clk 0:01:54]}  Bc6 {[%clk 0:02:26]} 13. f3 {[%clk 0:01:54]}  Nd7 {[%clk 0:02:25]} 14. Bxg7 {[%clk 0:01:46]}  Kxg7 {[%clk 0:02:25]} 15. a3 {[%clk 0:01:46]}  Nf6 {[%clk 0:02:07]} 16. Nd5 {[%clk 0:01:42]}  Bxd5 {[%clk 0:02:01]} 17. cxd5 {[%clk 0:01:39]}  Rac8 {[%clk 0:01:57]} 18. Qd4 {[%clk 0:01:34]}  Qb6 {[%clk 0:01:48]} 19. Qxb6 {[%clk 0:01:15]}  axb6 {[%clk 0:01:47]} 20. Kg1 {[%clk 0:01:01]}  Nd7 {[%clk 0:01:25]} 21. f4 {[%clk 0:00:51]}  Nc5 {[%clk 0:01:21]} 22. Rc4 {[%clk 0:00:42]}  Nb3 {[%clk 0:00:23]} 23. Rb4 {[%clk 0:00:38]}  Nd2 {[%clk 0:00:20]} 24. Rd1 {[%clk 0:00:35]}  Rc2 {[%clk 0:00:04]} 25. Bd3 {[%clk 0:00:35]}  Rfc8 {[%clk 0:00:02]} 26. Bxc2 {[%clk 0:00:34]}  Rxc2 {[%clk 0:00:03]} 27. Rxb6 {[%clk 0:00:32]}  Nc4 {[%clk 0:00:02]} 28. Rxb7 {[%clk 0:00:31]}  Ne3 {[%clk 0:00:01]} 29. Ra1 {[%clk 0:00:23]} 1-0


[Site "https://www.chess.com"]

[Event "Titled Tuesday Blitz November 15 Early 2022"]
[White "Jones, Gawain C B"]
[Black "Caruana, Fabiano"]
[WhiteFideId "409561"]
[BlackFideId "2020009"]
[WhiteElo "2657"]
[BlackElo "2847"]
[Result "0-1"]
[Round "07"]
[TimeControl "180+1"]
[Date "2022.11.15"]
[WhiteClock "0:00:01"]
[BlackClock "0:00:05"]

1. Nf3 {[%clk 0:03:00]}  d5 {[%clk 0:02:59]} 2. g3 {[%clk 0:03:01]}  c5 {[%clk 0:03:00]} 3. Bg2 {[%clk 0:03:01]}  Nc6 {[%clk 0:03:00]} 4. d4 {[%clk 0:02:59]}  Nf6 {[%clk 0:02:58]} 5. O-O {[%clk 0:02:56]}  e6 {[%clk 0:02:58]} 6. c4 {[%clk 0:02:52]}  dxc4 {[%clk 0:02:58]} 7. dxc5 {[%clk 0:02:37]}  Qxd1 {[%clk 0:02:55]} 8. Rxd1 {[%clk 0:02:36]}  Bxc5 {[%clk 0:02:56]} 9. Nbd2 {[%clk 0:02:15]}  c3 {[%clk 0:02:56]} 10. bxc3 {[%clk 0:02:14]}  O-O {[%clk 0:02:56]} 11. Nb3 {[%clk 0:02:13]}  Be7 {[%clk 0:02:57]} 12. Nfd4 {[%clk 0:02:13]}  Nxd4 {[%clk 0:02:45]} 13. cxd4 {[%clk 0:02:10]}  Nd5 {[%clk 0:02:46]} 14. e4 {[%clk 0:02:03]}  Nc3 {[%clk 0:02:43]} 15. Rd3 {[%clk 0:02:02]}  Ne2+ {[%clk 0:02:42]} 16. Kf1 {[%clk 0:02:03]}  Nxc1 {[%clk 0:02:42]} 17. Rxc1 {[%clk 0:02:04]}  b6 {[%clk 0:02:39]} 18. Rdc3 {[%clk 0:01:58]}  Ba6+ {[%clk 0:02:34]} 19. Kg1 {[%clk 0:01:58]}  Rac8 {[%clk 0:02:10]} 20. Rc7 {[%clk 0:01:54]}  Ba3 {[%clk 0:02:09]} 21. R1c3 {[%clk 0:01:34]}  Bd6 {[%clk 0:02:07]} 22. Rxc8 {[%clk 0:01:16]}  Rxc8 {[%clk 0:02:08]} 23. Rxc8+ {[%clk 0:01:16]}  Bxc8 {[%clk 0:02:07]} 24. e5 {[%clk 0:01:14]}  Bb4 {[%clk 0:02:05]} 25. f4 {[%clk 0:01:09]}  a5 {[%clk 0:02:01]} 26. Kf2 {[%clk 0:01:01]}  Ba6 {[%clk 0:01:50]} 27. d5 {[%clk 0:00:57]}  exd5 {[%clk 0:01:37]} 28. Bxd5 {[%clk 0:00:58]}  Kf8 {[%clk 0:01:35]} 29. Ke3 {[%clk 0:00:57]}  Bf1 {[%clk 0:01:21]} 30. g4 {[%clk 0:00:39]}  Ke7 {[%clk 0:01:12]} 31. Kf2 {[%clk 0:00:31]}  Bd3 {[%clk 0:01:09]} 32. Ke3 {[%clk 0:00:27]}  Bb1 {[%clk 0:01:05]} 33. Nd2 {[%clk 0:00:25]}  Bc2 {[%clk 0:01:02]} 34. Ne4 {[%clk 0:00:17]}  Bd1 {[%clk 0:00:47]} 35. h3 {[%clk 0:00:15]}  h6 {[%clk 0:00:42]} 36. f5 {[%clk 0:00:15]}  f6 {[%clk 0:00:22]} 37. Kd4 {[%clk 0:00:07]}  fxe5+ {[%clk 0:00:17]} 38. Kxe5 {[%clk 0:00:08]}  Ba3 {[%clk 0:00:15]} 39. Kd4 {[%clk 0:00:04]}  Bb2+ {[%clk 0:00:15]} 40. Ke3 {[%clk 0:00:05]}  b5 {[%clk 0:00:13]} 41. Nf2 {[%clk 0:00:05]}  Bc2 {[%clk 0:00:10]} 42. Kd2 {[%clk 0:00:03]}  Bb1 {[%clk 0:00:10]} 43. Nd1 {[%clk 0:00:03]}  Bf6 {[%clk 0:00:05]} 44. Nc3 {[%clk 0:00:03]}  Kd6 {[%clk 0:00:05]} 45. Be6 {[%clk 0:00:02]}  Bxc3+ {[%clk 0:00:05]} 46. Kxc3 {[%clk 0:00:03]}  b4+ {[%clk 0:00:05]} 47. Kd4 {[%clk 0:00:03]}  a4 {[%clk 0:00:05]} 48. h4 {[%clk 0:00:03]}  Bc2 {[%clk 0:00:03]} 49. g5 {[%clk 0:00:03]}  hxg5 {[%clk 0:00:03]} 50. hxg5 {[%clk 0:00:04]}  a3 {[%clk 0:00:03]} 51. g6 {[%clk 0:00:02]}  b3 {[%clk 0:00:04]} 52. Bxb3 {[%clk 0:00:02]}  Bxb3 {[%clk 0:00:04]} 53. f6 {[%clk 0:00:02]}  gxf6 {[%clk 0:00:03]} 54. axb3 {[%clk 0:00:01]}  a2 {[%clk 0:00:04]} 55. g7 {[%clk 0:00:01]}  a1=Q+ {[%clk 0:00:05]} 0-1


[Site "https://www.chess.com"]

[Event "Titled Tuesday Blitz November 15 Early 2022"]
[White "Jumabayev, Rinat"]
[Black "Sarana, Alexey"]
[WhiteFideId "13702661"]
[BlackFideId "24133795"]
[WhiteElo "2561"]
[BlackElo "2708"]
[Result "0-1"]
[Round "07"]
[TimeControl "180+1"]
[Date "2022.11.15"]
[WhiteClock "0:00:03"]
[BlackClock "0:00:09"]

1. e4 {[%clk 0:03:00]}  c5 {[%clk 0:02:54]} 2. Nf3 {[%clk 0:03:00]}  d6 {[%clk 0:02:55]} 3. Bb5+ {[%clk 0:03:00]}  Bd7 {[%clk 0:02:55]} 4. Bxd7+ {[%clk 0:02:54]}  Nxd7 {[%clk 0:02:56]} 5. c4 {[%clk 0:02:50]}  Ne5 {[%clk 0:02:56]} 6. O-O {[%clk 0:02:45]}  e6 {[%clk 0:02:55]} 7. Nc3 {[%clk 0:02:44]}  Ne7 {[%clk 0:02:52]} 8. d4 {[%clk 0:02:38]}  Nxf3+ {[%clk 0:02:52]} 9. gxf3 {[%clk 0:02:32]}  cxd4 {[%clk 0:02:43]} 10. Qxd4 {[%clk 0:02:32]}  Nc6 {[%clk 0:02:43]} 11. Qe3 {[%clk 0:02:23]}  a6 {[%clk 0:02:22]} 12. Rd1 {[%clk 0:02:21]}  Qh4 {[%clk 0:02:22]} 13. Qf4 {[%clk 0:02:07]}  Qh5 {[%clk 0:02:21]} 14. Kg2 {[%clk 0:01:57]}  Ne5 {[%clk 0:02:19]} 15. b3 {[%clk 0:01:45]}  Be7 {[%clk 0:02:19]} 16. Ne2 {[%clk 0:01:37]}  g5 {[%clk 0:01:39]} 17. Qg3 {[%clk 0:01:36]}  Rg8 {[%clk 0:01:27]} 18. Ba3 {[%clk 0:00:44]}  g4 {[%clk 0:01:25]} 19. Kh1 {[%clk 0:00:34]}  Bh4 {[%clk 0:01:17]} 20. Qg2 {[%clk 0:00:29]}  Nxf3 {[%clk 0:00:30]} 21. Bxd6 {[%clk 0:00:24]}  Bf6 {[%clk 0:00:30]} 22. Rac1 {[%clk 0:00:22]}  Be5 {[%clk 0:00:30]} 23. c5 {[%clk 0:00:17]}  Rg6 {[%clk 0:00:28]} 24. Nf4 {[%clk 0:00:14]}  Bxf4 {[%clk 0:00:29]} 25. Bxf4 {[%clk 0:00:13]}  e5 {[%clk 0:00:29]} 26. Bg3 {[%clk 0:00:14]}  Rh6 {[%clk 0:00:29]} 27. Rd5 {[%clk 0:00:13]}  Rd8 {[%clk 0:00:25]} 28. Rcd1 {[%clk 0:00:13]}  Rxd5 {[%clk 0:00:24]} 29. Rxd5 {[%clk 0:00:14]}  Kf8 {[%clk 0:00:15]} 30. Rd8+ {[%clk 0:00:07]}  Kg7 {[%clk 0:00:16]} 31. Rd6 {[%clk 0:00:07]}  Rxd6 {[%clk 0:00:13]} 32. cxd6 {[%clk 0:00:08]}  Qh6 {[%clk 0:00:14]} 33. Qf1 {[%clk 0:00:07]}  Qxd6 {[%clk 0:00:14]} 34. h3 {[%clk 0:00:07]}  h5 {[%clk 0:00:14]} 35. hxg4 {[%clk 0:00:07]}  hxg4 {[%clk 0:00:15]} 36. Kg2 {[%clk 0:00:08]}  Qh6 {[%clk 0:00:15]} 37. Qh1 {[%clk 0:00:08]}  Qxh1+ {[%clk 0:00:14]} 38. Kxh1 {[%clk 0:00:09]}  Kg6 {[%clk 0:00:15]} 39. Kg2 {[%clk 0:00:09]}  f5 {[%clk 0:00:15]} 40. exf5+ {[%clk 0:00:10]}  Kxf5 {[%clk 0:00:16]} 41. Kf1 {[%clk 0:00:10]}  Ke4 {[%clk 0:00:16]} 42. Ke2 {[%clk 0:00:11]}  Nd4+ {[%clk 0:00:17]} 43. Kd2 {[%clk 0:00:11]}  Nf5 {[%clk 0:00:17]} 44. Bh2 {[%clk 0:00:11]}  Kd4 {[%clk 0:00:16]} 45. Ke2 {[%clk 0:00:09]}  b5 {[%clk 0:00:12]} 46. Kd2 {[%clk 0:00:09]}  Nh4 {[%clk 0:00:08]} 47. Bg3 {[%clk 0:00:05]}  Nf3+ {[%clk 0:00:09]} 48. Kc2 {[%clk 0:00:05]}  Ng5 {[%clk 0:00:08]} 49. Bh4 {[%clk 0:00:05]}  Nh3 {[%clk 0:00:07]} 50. Kd2 {[%clk 0:00:04]}  Ke4 {[%clk 0:00:07]} 51. Ke2 {[%clk 0:00:04]}  Nf4+ {[%clk 0:00:07]} 52. Kd2 {[%clk 0:00:04]}  Kf3 {[%clk 0:00:08]} 53. Bg3 {[%clk 0:00:05]}  e4 {[%clk 0:00:08]} 54. Bh4 {[%clk 0:00:04]}  Nd3 {[%clk 0:00:08]} 55. Kc3 {[%clk 0:00:02]}  Nxf2 {[%clk 0:00:09]} 56. Kd4 {[%clk 0:00:03]}  e3 {[%clk 0:00:09]} 0-1


[Site "https://www.chess.com"]

[Event "Titled Tuesday Blitz November 15 Early 2022"]
[White "Khamdamova, Afruza"]
[Black "Aumann, Welf"]
[WhiteFideId "14210444"]
[BlackFideId "4634071"]
[WhiteElo "2018"]
[BlackElo "2271"]
[Result "0-1"]
[Round "07"]
[TimeControl "180+1"]
[Date "2022.11.16"]
[WhiteClock "0:00:01"]
[BlackClock "0:00:13"]

1. e4 {[%clk 0:03:00]}  e6 {[%clk 0:02:59]} 2. d4 {[%clk 0:03:00]}  d5 {[%clk 0:02:59]} 3. Nd2 {[%clk 0:03:01]}  Nc6 {[%clk 0:02:59]} 4. Ngf3 {[%clk 0:03:00]}  Nf6 {[%clk 0:03:00]} 5. e5 {[%clk 0:03:00]}  Nd7 {[%clk 0:03:00]} 6. Be2 {[%clk 0:02:57]}  f6 {[%clk 0:03:00]} 7. exf6 {[%clk 0:02:56]}  Qxf6 {[%clk 0:03:00]} 8. Nf1 {[%clk 0:02:55]}  Bd6 {[%clk 0:03:00]} 9. Ne3 {[%clk 0:02:55]}  O-O {[%clk 0:03:00]} 10. O-O {[%clk 0:02:55]}  Nb6 {[%clk 0:02:59]} 11. Ng4 {[%clk 0:02:53]}  Qg6 {[%clk 0:02:47]} 12. h3 {[%clk 0:02:38]}  Bd7 {[%clk 0:02:35]} 13. Bd3 {[%clk 0:02:35]}  Qh5 {[%clk 0:02:32]} 14. Ng5 {[%clk 0:02:32]}  g6 {[%clk 0:02:17]} 15. Be2 {[%clk 0:02:16]}  Qh4 {[%clk 0:02:01]} 16. Qd3 {[%clk 0:01:50]}  Bf4 {[%clk 0:01:38]} 17. Bxf4 {[%clk 0:01:38]}  Rxf4 {[%clk 0:01:36]} 18. g3 {[%clk 0:01:33]}  Rxg4 {[%clk 0:01:25]} 19. Bxg4 {[%clk 0:00:39]}  Qxg5 {[%clk 0:01:24]} 20. Rae1 {[%clk 0:00:40]}  Qf6 {[%clk 0:01:18]} 21. c3 {[%clk 0:00:39]}  Re8 {[%clk 0:01:16]} 22. f4 {[%clk 0:00:38]}  Nc4 {[%clk 0:01:10]} 23. Rf2 {[%clk 0:00:35]}  Nd6 {[%clk 0:01:06]} 24. Rfe2 {[%clk 0:00:34]}  Nf5 {[%clk 0:01:04]} 25. Kh2 {[%clk 0:00:31]}  Kg7 {[%clk 0:01:04]} 26. b4 {[%clk 0:00:24]}  Nd8 {[%clk 0:00:55]} 27. Bxf5 {[%clk 0:00:19]}  Qxf5 {[%clk 0:00:49]} 28. Qf3 {[%clk 0:00:15]}  Nf7 {[%clk 0:00:45]} 29. g4 {[%clk 0:00:15]}  Qf6 {[%clk 0:00:45]} 30. f5 {[%clk 0:00:14]}  Ng5 {[%clk 0:00:36]} 31. Qf4 {[%clk 0:00:14]}  Ne4 {[%clk 0:00:28]} 32. Qe5 {[%clk 0:00:11]}  Qxe5+ {[%clk 0:00:25]} 33. dxe5 {[%clk 0:00:11]}  exf5 {[%clk 0:00:25]} 34. gxf5 {[%clk 0:00:11]}  Bxf5 {[%clk 0:00:25]} 35. Rc1 {[%clk 0:00:06]}  Rxe5 {[%clk 0:00:24]} 36. Re3 {[%clk 0:00:05]}  Re6 {[%clk 0:00:20]} 37. Rd1 {[%clk 0:00:05]}  c6 {[%clk 0:00:20]} 38. a4 {[%clk 0:00:04]}  a6 {[%clk 0:00:19]} 39. c4 {[%clk 0:00:04]}  dxc4 {[%clk 0:00:16]} 40. Rd7+ {[%clk 0:00:04]}  Kh6 {[%clk 0:00:16]} 41. Rxb7 {[%clk 0:00:04]}  c3 {[%clk 0:00:16]} 42. Re2 {[%clk 0:00:02]}  Nd2 {[%clk 0:00:15]} 43. Rxe6 {[%clk 0:00:02]}  Bxe6 {[%clk 0:00:13]} 44. Rc7 {[%clk 0:00:02]}  Bc4 {[%clk 0:00:13]} 45. Rxc6 {[%clk 0:00:01]}  c2 {[%clk 0:00:13]} 0-1


[Site "https://www.chess.com"]